[Event "*** Titled Tuesday Blitz"]
[Site "Chess.com"]
[Date "2021.02.16"]
[Round "8"]
[White "monalize"]
[Black "rychessmaster1"]
[Result "1/2-1/2"]
[WhiteElo "2389"]
[BlackElo "2543"]
[TimeControl "180+1"]
[EndTime "11:31:40 PST"]
[Termination "Game drawn by repetition"]

1. e4 {[%clk 0:03:00.9]} 1... c6 {[%clk 0:03:00.1]} 2. d4 {[%clk 0:03:00.2]}
2... d5 {[%clk 0:03:00.9]} 3. Nc3 {[%clk 0:03:00.7]} 3... dxe4 {[%clk
0:03:01.5]} 4. Nxe4 {[%clk 0:03:00.5]} 4... Nf6 {[%clk 0:03:02.1]} 5. Nxf6+
{[%clk 0:02:59.2]} 5... exf6 {[%clk 0:03:03]} 6. Bc4 {[%clk 0:02:58.8]} 6... Bd6
{[%clk 0:03:02.4]} 7. Qe2+ {[%clk 0:02:56.3]} 7... Be7 {[%clk 0:03:03]} 8. c3
{[%clk 0:02:54.9]} 8... O-O {[%clk 0:03:02.7]} 9. Be3 {[%clk 0:02:54]} 9... Bf5
{[%clk 0:02:55.3]} 10. Nf3 {[%clk 0:02:49.9]} 10... Nd7 {[%clk 0:02:52.5]} 11.
h3 {[%clk 0:02:47.8]} 11... Nb6 {[%clk 0:02:52.1]} 12. Bb3 {[%clk 0:02:47.4]}
12... Re8 {[%clk 0:02:46.1]} 13. O-O {[%clk 0:02:46.5]} 13... Nd5 {[%clk
0:02:43.6]} 14. Rae1 {[%clk 0:02:34.6]} 14... Qd7 {[%clk 0:02:30.2]} 15. Nh4
{[%clk 0:02:31.6]} 15... Bd6 {[%clk 0:02:15.4]} 16. Nxf5 {[%clk 0:02:27.4]}
16... Qxf5 {[%clk 0:02:16.3]} 17. Bc2 {[%clk 0:02:27]} 17... Qd7 {[%clk
0:02:02]} 18. Qd3 {[%clk 0:02:26.6]} 18... g6 {[%clk 0:01:59.3]} 19. Bc1 {[%clk
0:02:22.8]} 19... Bf4 {[%clk 0:01:47.1]} 20. Qf3 {[%clk 0:02:12.7]} 20... Bxc1
{[%clk 0:01:45.5]} 21. Rxc1 {[%clk 0:02:12.6]} 21... f5 {[%clk 0:01:40.7]} 22.
Rfe1 {[%clk 0:02:12.1]} 22... Rxe1+ {[%clk 0:01:39.9]} 23. Rxe1 {[%clk
0:02:11.6]} 23... Re8 {[%clk 0:01:40.7]} 24. Qd1 {[%clk 0:02:11.3]} 24... Re6
{[%clk 0:01:38.2]} 25. Bb3 {[%clk 0:02:10.9]} 25... Qe7 {[%clk 0:01:34.9]} 26.
Kf1 {[%clk 0:02:10.7]} 26... Re4 {[%clk 0:01:28.8]} 27. Bc2 {[%clk 0:02:08]}
27... Re6 {[%clk 0:01:23.8]} 28. Bb3 {[%clk 0:02:07.8]} 28... Rxe1+ {[%clk
0:01:10.3]} 29. Qxe1 {[%clk 0:02:07.4]} 29... Qxe1+ {[%clk 0:01:11]} 30. Kxe1
{[%clk 0:02:07.3]} 30... Nb6 {[%clk 0:01:10]} 31. Ke2 {[%clk 0:02:06.3]} 31...
Kf8 {[%clk 0:01:08.8]} 32. f4 {[%clk 0:02:05.9]} 32... h6 {[%clk 0:01:07.3]} 33.
Kd3 {[%clk 0:02:05]} 33... f6 {[%clk 0:01:06.5]} 34. c4 {[%clk 0:02:04.5]} 34...
Ke7 {[%clk 0:01:05.8]} 35. c5 {[%clk 0:02:02.6]} 35... Nd7 {[%clk 0:01:04.5]}
36. Bc4 {[%clk 0:02:01]} 36... a5 {[%clk 0:00:59.2]} 37. a3 {[%clk 0:01:57.7]}
37... b6 {[%clk 0:00:54.2]} 38. b4 {[%clk 0:01:54.5]} 38... axb4 {[%clk
0:00:54.6]} 39. axb4 {[%clk 0:01:54]} 39... bxc5 {[%clk 0:00:55.2]} 40. dxc5
{[%clk 0:01:53.7]} 40... g5 {[%clk 0:00:54.5]} 41. g3 {[%clk 0:01:52.3]} 41...
Nf8 {[%clk 0:00:50.9]} 42. Ke3 {[%clk 0:01:48.5]} 42... h5 {[%clk 0:00:41.1]}
43. Be2 {[%clk 0:01:46.8]} 43... h4 {[%clk 0:00:41.3]} 44. gxh4 {[%clk
0:01:46.2]} 44... gxh4 {[%clk 0:00:41.6]} 45. Bd3 {[%clk 0:01:39.3]} 45... Ke6
{[%clk 0:00:41.9]} 46. Bc4+ {[%clk 0:01:39.1]} 46... Ke7 {[%clk 0:00:42.6]} 47.
b5 {[%clk 0:01:30.8]} 47... cxb5 {[%clk 0:00:42.8]} 48. Bxb5 {[%clk 0:01:30.6]}
48... Ne6 {[%clk 0:00:42.6]} 49. c6 {[%clk 0:01:28.4]} 49... Kd6 {[%clk
0:00:43]} 50. Bc4 {[%clk 0:01:28.2]} 50... Nc7 {[%clk 0:00:35.3]} 51. Bd3 {[%clk
0:01:27.5]} 51... Nd5+ {[%clk 0:00:34.8]} 52. Kf3 {[%clk 0:01:26.9]} 52... Ne7
{[%clk 0:00:35.2]} 53. Bc2 {[%clk 0:01:20.8]} 53... Kxc6 {[%clk 0:00:34.9]} 54.
Bb1 {[%clk 0:01:20.5]} 54... Kc5 {[%clk 0:00:35.1]} 55. Ba2 {[%clk 0:01:20.4]}
55... Kd6 {[%clk 0:00:34.2]} 56. Ke3 {[%clk 0:01:19.1]} 56... Nc6 {[%clk
0:00:31.2]} 57. Bb1 {[%clk 0:01:16.5]} 57... Ke6 {[%clk 0:00:31.1]} 58. Ba2+
{[%clk 0:01:16.2]} 58... Ke7 {[%clk 0:00:31.6]} 59. Bb1 {[%clk 0:01:16.1]} 59...
Ke6 {[%clk 0:00:32.3]} 60. Ba2+ {[%clk 0:01:15.9]} 60... Kd6 {[%clk 0:00:33.2]}
61. Bb1 {[%clk 0:01:15.6]} 61... Ne7 {[%clk 0:00:34]} 62. Ba2 {[%clk 0:01:15.3]}
62... Kc5 {[%clk 0:00:27.1]} 63. Be6 {[%clk 0:01:13.6]} 63... Kb4 {[%clk
0:00:24.2]} 64. Kd4 {[%clk 0:01:11]} 64... Kb5 {[%clk 0:00:24.9]} 65. Ke3 {[%clk
0:01:10.3]} 65... Kc5 {[%clk 0:00:25.3]} 66. Ba2 {[%clk 0:01:08.5]} 66... Kb4
{[%clk 0:00:23.4]} 67. Be6 {[%clk 0:01:08]} 67... Kc3 {[%clk 0:00:23.2]} 68. Bd7
{[%clk 0:01:07.1]} 68... Nd5+ {[%clk 0:00:23.1]} 69. Kf3 {[%clk 0:01:06.7]}
69... Kd4 {[%clk 0:00:18.7]} 70. Bxf5 {[%clk 0:01:05.5]} 70... Ne7 {[%clk
0:00:19.3]} 71. Kg4 {[%clk 0:00:59.9]} 71... Ke3 {[%clk 0:00:20]} 72. Bh7 {[%clk
0:00:58.1]} 72... Nd5 {[%clk 0:00:20.3]} 73. f5 {[%clk 0:00:57.7]} 73... Ke4
{[%clk 0:00:20.9]} 74. Kxh4 {[%clk 0:00:57.1]} 74... Nf4 {[%clk 0:00:21]} 75.
Kg4 {[%clk 0:00:56.7]} 75... Nd3 {[%clk 0:00:15.7]} 76. h4 {[%clk 0:00:54.3]}
76... Ne5+ {[%clk 0:00:16.3]} 77. Kg3 {[%clk 0:00:52.5]} 77... Kd5 {[%clk
0:00:16.7]} 78. h5 {[%clk 0:00:52]} 78... Nf7 {[%clk 0:00:16.4]} 79. Kf4 {[%clk
0:00:50.4]} 79... Nh6 {[%clk 0:00:16.5]} 80. Bg8+ {[%clk 0:00:49.7]} 80... Kd4
{[%clk 0:00:15.8]} 81. Be6 {[%clk 0:00:49.1]} 81... Kd3 {[%clk 0:00:15.9]} 82.
Ba2 {[%clk 0:00:46.2]} 82... Kd4 {[%clk 0:00:16.8]} 83. Be6 {[%clk 0:00:45.7]}
83... Kd3 {[%clk 0:00:17.3]} 84. Bc8 {[%clk 0:00:44.9]} 84... Kd4 {[%clk
0:00:18]} 85. Ba6 {[%clk 0:00:44.3]} 85... Kd5 {[%clk 0:00:18.8]} 86. Bb7+
{[%clk 0:00:44]} 86... Kd4 {[%clk 0:00:19.5]} 87. Bc8 {[%clk 0:00:43]} 87... Kd5
{[%clk 0:00:19.7]} 88. Be6+ {[%clk 0:00:39.3]} 88... Kd4 {[%clk 0:00:20.4]} 89.
Ba2 {[%clk 0:00:36.6]} 89... Kd3 {[%clk 0:00:21.1]} 90. Be6 {[%clk 0:00:33.6]}
90... Kd4 {[%clk 0:00:21.6]} 91. Ba2 {[%clk 0:00:33]} 91... Kd3 {[%clk
0:00:22.4]} 92. Be6 {[%clk 0:00:32.5]} 92... Kd4 {[%clk 0:00:23.3]} 1/2-1/2

[Event "*** Titled Tuesday Blitz"]
[Site "Chess.com"]
[Date "2021.02.16"]
[Round "8"]
[White "Genghis_K"]
[Black "lachesisQ"]
[Result "1/2-1/2"]
[WhiteElo "2915"]
[BlackElo "3050"]
[TimeControl "180+1"]
[EndTime "11:33:02 PST"]
[Termination "Game drawn by 50-move rule"]

1. e4 {[%clk 0:02:53.6]} 1... e6 {[%clk 0:02:58.6]} 2. d4 {[%clk 0:02:52.4]}
2... d5 {[%clk 0:02:59.5]} 3. Nd2 {[%clk 0:02:53.1]} 3... c5 {[%clk 0:02:58.6]}
4. Ngf3 {[%clk 0:02:52.8]} 4... cxd4 {[%clk 0:02:58.9]} 5. Nxd4 {[%clk
0:02:51.9]} 5... Nc6 {[%clk 0:02:59.5]} 6. Nxc6 {[%clk 0:02:52.5]} 6... bxc6
{[%clk 0:03:00.4]} 7. Bd3 {[%clk 0:02:52.7]} 7... Qc7 {[%clk 0:02:58.2]} 8. Qe2
{[%clk 0:02:51.7]} 8... Bd6 {[%clk 0:02:57.6]} 9. Nf3 {[%clk 0:02:45.4]} 9...
dxe4 {[%clk 0:02:57.2]} 10. Qxe4 {[%clk 0:02:44.7]} 10... Nf6 {[%clk 0:02:56.7]}
11. Qh4 {[%clk 0:02:44]} 11... Bb7 {[%clk 0:02:55.5]} 12. Bg5 {[%clk 0:02:43.6]}
12... c5 {[%clk 0:02:45.5]} 13. Bxf6 {[%clk 0:02:29]} 13... gxf6 {[%clk
0:02:41.3]} 14. Qxf6 {[%clk 0:02:28.9]} 14... Rg8 {[%clk 0:02:41.5]} 15. Bb5+
{[%clk 0:02:26.7]} 15... Bc6 {[%clk 0:02:40.9]} 16. Bxc6+ {[%clk 0:02:24]} 16...
Qxc6 {[%clk 0:02:41.8]} 17. O-O {[%clk 0:02:09.6]} 17... Rg6 {[%clk 0:02:39.8]}
18. Qc3 {[%clk 0:02:09.8]} 18... Ke7 {[%clk 0:02:31.8]} 19. g3 {[%clk 0:02:04]}
19... h5 {[%clk 0:02:31.5]} 20. Rad1 {[%clk 0:02:00]} 20... Rag8 {[%clk
0:02:27.4]} 21. Qe3 {[%clk 0:01:49.9]} 21... Rf6 {[%clk 0:02:22.9]} 22. Nd2
{[%clk 0:01:42.7]} 22... Rg4 {[%clk 0:02:20.2]} 23. h3 {[%clk 0:01:29.5]} 23...
Rh4 {[%clk 0:02:17.6]} 24. Rfe1 {[%clk 0:01:08.4]} 24... Rg6 {[%clk 0:01:27.9]}
25. Ne4 {[%clk 0:00:57.7]} 25... Bxg3 {[%clk 0:01:26.1]} 26. fxg3 {[%clk
0:00:49.9]} 26... Rxh3 {[%clk 0:01:25.5]} 27. Qxc5+ {[%clk 0:00:29.9]} 27...
Qxc5+ {[%clk 0:01:24.6]} 28. Nxc5 {[%clk 0:00:30.8]} 28... Rhxg3+ {[%clk
0:01:24.9]} 29. Kf2 {[%clk 0:00:28.9]} 29... Rg2+ {[%clk 0:01:24.5]} 30. Ke3
{[%clk 0:00:29.4]} 30... R6g3+ {[%clk 0:01:21.6]} 31. Kd4 {[%clk 0:00:27.3]}
31... Rxc2 {[%clk 0:01:19.5]} 32. Nd3 {[%clk 0:00:27.5]} 32... h4 {[%clk
0:01:14.1]} 33. Rc1 {[%clk 0:00:24.2]} 33... Rg4+ {[%clk 0:01:00.8]} 34. Re4
{[%clk 0:00:21.2]} 34... Rcg2 {[%clk 0:00:57.1]} 35. Rc7+ {[%clk 0:00:15.5]}
35... Ke8 {[%clk 0:00:55.4]} 36. Ne5 {[%clk 0:00:09.6]} 36... Rxe4+ {[%clk
0:00:54.8]} 37. Kxe4 {[%clk 0:00:10.2]} 37... f6 {[%clk 0:00:53.3]} 38. Nf3
{[%clk 0:00:05.7]} 38... h3 {[%clk 0:00:53.1]} 39. Rxa7 {[%clk 0:00:05.3]} 39...
Rxb2 {[%clk 0:00:52.1]} 40. Rh7 {[%clk 0:00:05.7]} 40... Rxa2 {[%clk 0:00:51]}
41. Rxh3 {[%clk 0:00:05.9]} 41... Ke7 {[%clk 0:00:51.3]} 42. Rh7+ {[%clk
0:00:05.7]} 42... Kd6 {[%clk 0:00:51.2]} 43. Rb7 {[%clk 0:00:06.4]} 43... Ra4+
{[%clk 0:00:50.7]} 44. Ke3 {[%clk 0:00:06.8]} 44... e5 {[%clk 0:00:47.8]} 45.
Rb3 {[%clk 0:00:07.1]} 45... Ke6 {[%clk 0:00:47.2]} 46. Nd2 {[%clk 0:00:07.8]}
46... Kf5 {[%clk 0:00:46.5]} 47. Rb1 {[%clk 0:00:08.1]} 47... Rh4 {[%clk
0:00:45.5]} 48. Rf1+ {[%clk 0:00:07.5]} 48... Ke6 {[%clk 0:00:45.6]} 49. Ne4
{[%clk 0:00:07.4]} 49... f5 {[%clk 0:00:42.5]} 50. Ng5+ {[%clk 0:00:07.8]} 50...
Kf6 {[%clk 0:00:42.6]} 51. Nf3 {[%clk 0:00:08.5]} 51... Re4+ {[%clk 0:00:42.4]}
52. Kf2 {[%clk 0:00:09.1]} 52... Ra4 {[%clk 0:00:43.3]} 53. Rc1 {[%clk
0:00:09.4]} 53... Ra2+ {[%clk 0:00:42.1]} 54. Ke3 {[%clk 0:00:08.4]} 54... f4+
{[%clk 0:00:38.8]} 55. Kd3 {[%clk 0:00:07.7]} 55... Kf5 {[%clk 0:00:37.7]} 56.
Rc5 {[%clk 0:00:05.5]} 56... Ra3+ {[%clk 0:00:36]} 57. Ke2 {[%clk 0:00:06]}
57... Kg4 {[%clk 0:00:32.5]} 58. Nxe5+ {[%clk 0:00:06]} 58... Kg3 {[%clk
0:00:32.7]} 59. Nd3 {[%clk 0:00:04.4]} 59... Ra2+ {[%clk 0:00:31.2]} 60. Ke1
{[%clk 0:00:04.9]} 60... f3 {[%clk 0:00:24.6]} 61. Rg5+ {[%clk 0:00:04.9]} 61...
Kh4 {[%clk 0:00:24.8]} 62. Rg8 {[%clk 0:00:05.5]} 62... Kh3 {[%clk 0:00:24.9]}
63. Kf1 {[%clk 0:00:05]} 63... Kh4 {[%clk 0:00:23.6]} 64. Ne5 {[%clk 0:00:04.5]}
64... Kh5 {[%clk 0:00:20.2]} 65. Nxf3 {[%clk 0:00:04.3]} 65... Ra5 {[%clk
0:00:20.4]} 66. Kf2 {[%clk 0:00:04.1]} 66... Kh6 {[%clk 0:00:20.9]} 67. Kg3
{[%clk 0:00:04.2]} 67... Ra6 {[%clk 0:00:21.1]} 68. Rh8+ {[%clk 0:00:04.7]}
68... Kg7 {[%clk 0:00:20.6]} 69. Rb8 {[%clk 0:00:05.6]} 69... Rg6+ {[%clk
0:00:20.9]} 70. Kf4 {[%clk 0:00:06]} 70... Rf6+ {[%clk 0:00:21.8]} 71. Ke4
{[%clk 0:00:06.6]} 71... Re6+ {[%clk 0:00:22]} 72. Ne5 {[%clk 0:00:07.2]} 72...
Ra6 {[%clk 0:00:22.9]} 73. Rb7+ {[%clk 0:00:07.6]} 73... Kg8 {[%clk 0:00:23.1]}
74. Kf5 {[%clk 0:00:07.5]} 74... Ra1 {[%clk 0:00:23.6]} 75. Ng4 {[%clk
0:00:07.8]} 75... Kf8 {[%clk 0:00:22.6]} 76. Ne5 {[%clk 0:00:05.5]} 76... Ra6
{[%clk 0:00:21.5]} 77. Ng6+ {[%clk 0:00:03.9]} 77... Kg8 {[%clk 0:00:21.6]} 78.
Nf4 {[%clk 0:00:04.6]} 78... Ra1 {[%clk 0:00:20.7]} 79. Nd5 {[%clk 0:00:04.1]}
79... Rf1+ {[%clk 0:00:20.5]} 80. Ke6 {[%clk 0:00:04.4]} 80... Kf8 {[%clk
0:00:20]} 81. Kd6 {[%clk 0:00:03]} 81... Rd1 {[%clk 0:00:19.6]} 82. Rb8+ {[%clk
0:00:03.3]} 82... Kf7 {[%clk 0:00:19.2]} 83. Rb2 {[%clk 0:00:04.2]} 83... Rf1
{[%clk 0:00:18.8]} 84. Ke5 {[%clk 0:00:03.7]} 84... Re1+ {[%clk 0:00:18.4]} 85.
Kf5 {[%clk 0:00:04.1]} 85... Rf1+ {[%clk 0:00:19.3]} 86. Nf4 {[%clk 0:00:04.6]}
86... Ke7 {[%clk 0:00:19.6]} 87. Re2+ {[%clk 0:00:04.2]} 87... Kd6 {[%clk
0:00:19.2]} 88. Rd2+ {[%clk 0:00:04.8]} 88... Kc5 {[%clk 0:00:19]} 89. Ke5
{[%clk 0:00:05.2]} 89... Re1+ {[%clk 0:00:18.9]} 90. Kf5 {[%clk 0:00:05.5]}
90... Kb5 {[%clk 0:00:19.6]} 91. Nd3 {[%clk 0:00:05.3]} 91... Re8 {[%clk
0:00:19]} 92. Rb2+ {[%clk 0:00:04.6]} 92... Kc4 {[%clk 0:00:18.2]} 93. Ne5+
{[%clk 0:00:05]} 93... Kc3 {[%clk 0:00:18.7]} 94. Rb7 {[%clk 0:00:05.6]} 94...
Rh8 {[%clk 0:00:19]} 95. Ke4 {[%clk 0:00:05.6]} 95... Kc2 {[%clk 0:00:18]} 96.
Rc7+ {[%clk 0:00:05.7]} 96... Kb3 {[%clk 0:00:18.1]} 97. Nf3 {[%clk 0:00:05]}
97... Re8+ {[%clk 0:00:17.8]} 98. Kd3 {[%clk 0:00:05.5]} 98... Rd8+ {[%clk
0:00:18.1]} 99. Nd4+ {[%clk 0:00:06.1]} 99... Kb4 {[%clk 0:00:18.3]} 100. Rc4+
{[%clk 0:00:06.5]} 100... Ka5 {[%clk 0:00:18.4]} 101. Rc1 {[%clk 0:00:06.1]}
101... Kb6 {[%clk 0:00:18.4]} 102. Rb1+ {[%clk 0:00:05.7]} 102... Kc7 {[%clk
0:00:18.4]} 103. Kc4 {[%clk 0:00:05.6]} 103... Rh8 {[%clk 0:00:18]} 104. Rg1
{[%clk 0:00:04.2]} 104... Rh4 {[%clk 0:00:17.4]} 105. Rg7+ {[%clk 0:00:04.4]}
105... Kd6 {[%clk 0:00:17.4]} 106. Rg5 {[%clk 0:00:04.9]} 106... Rh1 {[%clk
0:00:16.3]} 107. Rd5+ {[%clk 0:00:05.2]} 107... Kc7 {[%clk 0:00:16.4]} 108. Nb5+
{[%clk 0:00:04.8]} 108... Kb6 {[%clk 0:00:16.3]} 109. Rd6+ {[%clk 0:00:04.9]}
109... Kb7 {[%clk 0:00:16.4]} 110. Nd4 {[%clk 0:00:04.4]} 110... Rc1+ {[%clk
0:00:16.6]} 111. Kd5 {[%clk 0:00:04.8]} 111... Rb1 {[%clk 0:00:16.6]} 112. Rd7+
{[%clk 0:00:04.7]} 112... Kc8 {[%clk 0:00:16.7]} 113. Rg7 {[%clk 0:00:05.1]}
113... Rd1 {[%clk 0:00:17.1]} 114. Kc5 {[%clk 0:00:05.1]} 114... Rc1+ {[%clk
0:00:17.1]} 115. Kd6 {[%clk 0:00:05.5]} 1/2-1/2